bitfinex-derivatives/quotes_BNBF0:USTF0_20251219
["timestamp","ask_amount","ask_price","bid_price","bid_amount"]
[1766119872242,0.8848169,837.4,836.31,2.18]
[1766119874251,0.8848169,837.41,836.31,2.18]
[1766119877250,0.8848169,837.42,836.31,2.18]
[1766119879861,0.8848169,837.41,836.31,2.18]
[1766119880262,0.8848169,837.42,836.31,2.18]
[1766119881667,0.8848169,837.4,836.31,2.18]
[1766119881964,0.8848169,837.37,836.31,2.18]
[1766119884366,0.8848169,837.38,836.31,2.18]
[1766119884871,0.8848169,837.39,836.31,2.18]
[1766119885169,0.8848169,837.4,836.31,2.18]
[1766119885369,0.8848169,837.41,836.31,2.18]
[1766119885670,0.8848169,837.42,836.31,2.18]
[1766119885871,1.19589434,837.41,836.31,2.18]
[1766119886269,0.8848169,837.45,836.31,2.18]
[1766119886572,1.19585573,837.44,836.31,2.18]
[1766119887571,0.8848169,837.43,836.31,2.18]
[1766119887770,1.19585573,837.42,836.31,2.18]
[1766119888174,0.8848169,837.43,836.31,2.18]
[1766119888472,1.19588145,837.42,836.31,2.18]
[1766119889270,2.08069835,837.42,836.31,2.18]
[1766119889470,0.8848169,837.42,836.31,2.18]
[1766119890275,2.08070558,837.41,836.31,2.18]
[1766119890475,0.8848169,837.41,836.31,2.18]
[1766119891078,1.19589279,837.4,836.31,2.18]
[1766119891278,0.8848169,837.3,836.31,2.18]
[1766119892175,1.19603682,837.29,836.31,2.18]
[1766119892681,0.8848169,837.37,836.31,2.18]
[1766119893084,0.8848169,837.37,836.2,13.19833976]
[1766119893278,2.08074389,837.36,836.2,13.19833976]
[1766119893478,0.8848169,837.36,836.2,13.19833976]
[1766119894185,1.19592694,837.35,836.2,13.19833976]
[1766119894387,2.08074384,837.35,836.2,13.19833976]
[1766119894582,0.8848169,837.35,836.2,13.19833976]
[1766119895186,2.08074384,837.34,836.2,13.19833976]
[1766119895382,0.8848169,837.34,836.2,13.19833976]
[1766119896186,2.08074389,837.33,836.2,13.19833976]
[1766119896387,0.8848169,837.33,836.2,13.19833976]
[1766119896587,0.8848169,837.33,836.21,2.092]
[1766119897188,2.08074431,837.32,836.21,2.092]
[1766119897483,0.8848169,837.32,836.21,2.092]
[1766119898189,1.19592714,837.31,836.21,2.092]
[1766119898488,2.08074404,837.31,836.21,2.092]
[1766119898688,0.8848169,837.31,836.21,2.092]
[1766119899189,0.8848169,837.3,836.21,2.092]
[1766119900290,2.08074384,837.29,836.21,2.092]
[1766119900488,0.8848169,837.29,836.21,2.092]
[1766119901185,1.19592714,837.28,836.21,2.092]
[1766119901385,0.8848169,837.27,836.21,2.092]
[1766119903291,1.19592678,837.26,836.21,2.092]
[1766119905292,0.8848169,837.27,836.21,2.092]
[1766119906292,1.19592678,837.26,836.21,2.092]
[1766119908389,0.8848169,837.27,836.21,2.092]
[1766119910090,1.19592688,837.26,836.21,2.092]
[1766119910890,0.8848169,837.27,836.21,2.092]
[1766119911190,2.08074378,837.26,836.21,2.092]
[1766119911496,0.8848169,837.26,836.21,2.092]
[1766119914198,2.08074378,837.25,836.21,2.092]
[1766119914398,0.8848169,837.25,836.21,2.092]
[1766119915901,0.8848169,837.26,836.21,2.092]
[1766119916301,2.08074384,837.25,836.21,2.092]
[1766119916501,0.8848169,837.25,836.21,2.092]
[1766119917097,0.8848169,837.29,836.23,1.18970075]
[1766119917300,0.8848169,837.29,836.24,1.18970075]
[1766119918298,0.8848169,837.28,836.24,1.18970075]
[1766119918504,0.8848169,837.29,836.24,1.18970075]
[1766119919304,2.08068577,837.28,836.25,1.18970075]
[1766119919501,2.08068577,837.27,836.24,1.18970075]
[1766119919705,0.8848169,837.27,836.24,1.18970075]
[1766119920507,0.89022477,837.27,836.24,1.18970075]
[1766119922806,2.08610612,837.26,836.24,1.18970075]
[1766119923006,9.81043557,837.26,836.24,1.18970075]
[1766119923401,9.81043557,837.26,836.25,1.18970075]
[1766119924207,2.08610606,837.25,836.25,1.18970075]
[1766119924401,0.89022477,837.25,836.25,1.18970075]
[1766119925207,0.89022477,837.25,836.26,1.18970075]
[1766119925603,1.1958814,837.24,836.26,1.18970075]
[1766119926204,2.08610617,837.24,836.27,1.18970075]
[1766119926403,1.1958814,837.23,836.27,1.18970075]
[1766119926611,0.89022477,837.24,836.27,1.18970075]
[1766119927107,1.19588114,837.23,836.27,1.18970075]
[1766119927308,2.08610591,837.23,836.28,1.18970075]
[1766119927507,2.08610591,837.22,836.28,1.18970075]
[1766119927705,0.89022477,837.24,836.3,1.18970075]
[1766119928202,1.19585557,837.23,836.3,1.18970075]
[1766119928406,8.9202108,837.26,836.34,1.18970075]
[1766119928606,8.9202108,837.26,836.35,1.18970075]
[1766119932207,8.9202108,837.26,836.34,1.18970075]
[1766119933507,9.81043557,837.26,836.3,1.18970075]
[1766119933812,0.89022477,837.13,836.21,2.092]
[1766119934005,2.08626964,837.12,836.21,2.092]
[1766119934207,0.89022477,837.12,836.21,2.092]
[1766119936317,0.89022477,837.13,836.21,2.092]
[1766119940217,0.89022477,837.14,836.21,2.092]
[1766119941218,0.89022477,837.09,836.21,2.092]
[1766119941518,0.89022477,837.08,836.21,2.092]
[1766119942314,8.9202108,837.26,836.21,2.092]
[1766119942315,0.89022477,837.09,836.21,2.092]
[1766119944218,0.89022477,837.09,836.2,13.19833976]
[1766119945516,1.19622628,837.08,836.2,13.19833976]
[1766119945716,0.89022477,837.03,836.2,13.19833976]
[1766119946215,8.9202108,837.26,836.2,13.19833976]
[1766119946216,0.89022477,837.04,836.2,13.19833976]
[1766119947622,0.89022477,837.04,835.98,1.18970075]
[1766119947917,0.89022477,837.04,836.21,2.248]
[1766119948122,0.89022477,837.04,836.21,15.51760921]
[1766119948322,0.89022477,837.05,836.21,15.51760921]
[1766119949221,0.89022477,837.06,836.21,15.51760921]
[1766119949422,0.89022477,837.08,836.21,15.51760921]
[1766119949718,0.89022477,837.11,836.21,15.51760921]
[1766119950422,0.89022477,837.17,836.21,15.51760921]
[1766119952224,0.89022477,837.12,836.21,15.51760921]
[1766119952623,0.89022477,837.13,836.21,15.51760921]
[1766119952821,0.89022477,837.17,836.21,15.51760921]
[1766119953021,0.89022477,837.18,836.21,15.51760921]
[1766119953222,8.9202108,837.26,836.21,15.51760921]
[1766119953223,0.89022477,837.2,836.21,15.51760921]
[1766119954125,8.9202108,837.26,836.21,15.51760921]
[1766119954526,8.9202108,837.26,836.21,16.70730996]
[1766119954721,8.9202108,837.26,836.26,1.18970075]
[1766119963231,8.9202108,837.26,836.25,1.18970075]
[1766119963432,8.9202108,837.26,836.3,1.18970075]
[1766119965233,8.9202108,837.26,836.29,1.18970075]
[1766119968234,8.9202108,837.26,836.28,1.18970075]
[1766119968434,8.9202108,837.26,836.33,1.18970075]
[1766119968636,8.9202108,837.26,836.34,1.18970075]
[1766119968935,8.9202108,837.26,836.35,1.18970075]
[1766119969333,8.9202108,837.26,836.34,1.18970075]
[1766119971334,8.9202108,837.26,836.33,1.18970075]
[1766119972433,8.9202108,837.26,836.3,1.18970075]
[1766119972639,8.9202108,837.26,836.26,1.18970075]
[1766119973038,8.9202108,837.26,836.27,1.729]
[1766119976437,8.9202108,837.26,836.31,1.18970075]
[1766119978341,8.9202108,837.26,836.29,1.18970075]
[1766119979940,8.9202108,837.26,836.27,1.729]
[1766120007061,8.9202108,837.26,836.32,1.18970075]
[1766120007262,8.9202108,837.26,836.33,1.18970075]
[1766120007565,8.9202108,837.26,836.35,1.18970075]
[1766120008265,8.9202108,837.26,836.36,1.18970075]
[1766120009364,8.9202108,837.26,836.37,1.18970075]
[1766120010268,8.9202108,837.26,836.38,1.18970075]
[1766120010872,8.9202108,837.26,836.43,1.18970075]
[1766120012270,8.9202108,837.26,836.44,1.18970075]
[1766120013376,8.9202108,837.26,836.45,1.18970075]
[1766120016378,8.9202108,837.26,836.44,1.18970075]
[1766120018173,8.9202108,837.26,836.45,1.18970075]
[1766120020378,8.9202108,837.26,836.44,1.18970075]
[1766120024285,8.9202108,837.26,836.43,1.18970075]
[1766120027890,8.9202108,837.26,836.42,1.18970075]
[1766120028185,0.20781392,837.61,836.59,1.18970075]
[1766120028391,0.20781392,837.61,836.55,1.18970075]
[1766120028592,1.09803869,837.61,836.51,1.18970075]
[1766120028790,9.96716558,837.61,836.51,1.18970075]
[1766120028991,9.96716558,837.61,836.21,13.26960921]
[1766120028992,0.89022477,837.58,836.48,1.18970075]
[1766120029389,0.89022477,837.5,836.38,1.18970075]
[1766120029594,1.19562196,837.49,836.38,1.18970075]
[1766120030187,0.89022477,837.5,836.38,1.18970075]
[1766120030392,1.19562196,837.49,836.38,1.18970075]
[1766120031193,0.20789897,837.22,836.38,1.18970075]
[1766120031989,0.20789897,837.22,836.35,1.18970075]
[1766120032294,0.20789897,837.22,836.34,1.18970075]
[1766120032489,0.20789897,837.22,836.36,2.099]
[1766120046598,0.20789897,837.22,836.38,1.18970075]
[1766120048499,0.20789897,837.22,836.39,1.18970075]
[1766120051704,0.20789897,837.22,836.42,1.18970075]
[1766120053205,0.20789897,837.22,836.43,1.18970075]
[1766120055006,0.20789897,837.22,836.44,1.18970075]
[1766120055306,0.20789897,837.22,836.45,1.18970075]
[1766120055507,0.20789897,837.22,836.44,1.18970075]
[1766120056206,0.20789897,837.22,836.45,1.18970075]
[1766120058500,0.20789897,837.22,836.46,1.18970075]
[1766120058705,0.20789897,837.22,836.46,2.79670075]
[1766120058905,0.20789897,837.22,836.49,1.18970075]
[1766120059306,0.20789897,837.22,836.5,1.18970075]
[1766120059706,0.20789897,837.22,836.51,1.18970075]
[1766120060603,0.8891184,837.6,836.53,1.18970075]
[1766120060808,0.20786109,837.31,836.57,1.18970075]
[1766120062008,0.20786109,837.31,836.64,1.18970075]
[1766120062409,0.20786109,837.31,836.63,1.18970075]
[1766120063207,8.86912689,837.61,836.64,1.18970075]
[1766120063507,8.86912689,837.61,836.46,1.607]
[1766120063508,0.20783626,837.43,836.63,1.18970075]
[1766120064406,0.20783626,837.43,836.62,1.18970075]
[1766120066607,0.20783626,837.43,836.61,1.18970075]
[1766120066811,0.20783626,837.43,836.6,1.18970075]
[1766120067109,0.20783626,837.43,836.52,1.18970075]
[1766120072215,0.20783626,837.43,836.51,1.18970075]
[1766120072617,0.20783626,837.43,836.48,1.18970075]
[1766120080331,0.20783626,837.43,836.46,1.607]
[1766120083537,0.20783626,837.43,836.46,2.79670075]
[1766120084437,0.20783626,837.43,836.52,1.18970075]
[1766120091142,0.20783626,837.43,836.57,1.18970075]
[1766120091338,0.20783626,837.43,836.56,1.18970075]
[1766120092542,0.20783626,837.43,836.57,1.18970075]
[1766120093942,0.20783626,837.43,836.59,1.18970075]
[1766120094940,0.20783626,837.43,836.46,1.607]
[1766120094941,0.20783626,837.43,836.61,1.18970075]
[1766120095142,0.20783626,837.43,836.62,1.18970075]
[1766120095343,0.20783626,837.43,836.63,1.18970075]
[1766120095542,0.20783626,837.43,836.62,1.18970075]
[1766120097046,0.20783626,837.43,836.67,1.18970075]
[1766120100550,0.20783626,837.43,836.66,1.18970075]
[1766120100747,0.20783626,837.43,836.63,1.18970075]
[1766120101152,0.20783626,837.43,836.59,1.18970075]
[1766120101345,0.20783626,837.43,836.46,1.607]
[1766120101346,0.20783626,837.43,836.6,1.18970075]
[1766120101546,0.20783626,837.43,836.5,1.18970075]
[1766120102048,0.20783626,837.43,836.49,1.18970075]
[1766120103453,0.20783626,837.43,836.5,1.18970075]
[1766120103654,0.20783626,837.43,836.49,1.18970075]
[1766120105656,0.20783626,837.43,836.46,1.607]
[1766120107056,0.20783626,837.43,836.47,1.18970075]
[1766120108356,0.20783626,837.43,836.48,1.18970075]
[1766120111758,0.20783626,837.43,836.46,1.607]
[1766120118360,0.20783626,837.43,836.45,1.18970075]
[1766120118562,0.20783626,837.43,836.49,1.18970075]
[1766120119560,0.20783626,837.43,836.49,14.34117661]
[1766120122062,0.20783626,837.43,836.5,1.789]
[1766120124569,0.20783626,837.43,836.5,2.97870075]
[1766120124770,0.20783626,837.43,836.5,1.789]
[1766120145386,0.8891184,837.34,836.5,1.789]
[1766120145587,0.8891184,837.35,836.5,1.789]
[1766120146484,0.8891184,837.36,836.5,1.789]
[1766120148287,0.8891184,837.37,836.5,1.789]
[1766120150382,0.8891184,837.38,836.5,1.789]
[1766120153092,0.8891184,837.39,836.5,1.789]
[1766120155294,1.19586579,837.38,836.5,1.789]
[1766120155494,0.8891184,837.28,836.5,1.789]
[1766120155789,0.8891184,837.21,836.5,1.789]
[1766120155995,0.8891184,837.14,836.5,1.789]
[1766120156195,0.8891184,837.16,836.5,1.789]
[1766120157294,0.8891184,837.17,836.5,1.789]
[1766120158195,0.8891184,837.19,836.5,1.789]
[1766120158393,2.08531384,837.18,836.5,1.789]
[1766120158595,0.8891184,837.18,836.5,1.789]
[1766120158996,0.8891184,837.2,836.5,1.789]
[1766120159295,0.8891184,837.24,836.5,1.789]
[1766120159497,2.0852424,837.23,836.5,1.789]
[1766120159793,0.8891184,837.23,836.5,1.789]
[1766120160297,0.8891184,837.25,836.5,1.789]
[1766120162099,9.00457474,837.27,836.5,1.789]
[1766120176307,9.00457474,837.27,836.34,1.18970075]
[1766120178009,9.00457474,837.27,836.34,14.34084675]
[1766120179808,9.00457474,837.27,836.35,1.65]
[1766120180209,9.00457474,837.27,836.35,2.83970075]
[1766120181207,9.00457474,837.27,836.36,1.18970075]
[1766120181810,9.00457474,837.27,836.38,1.18970075]
[1766120182114,9.00457474,837.27,836.45,1.18970075]
[1766120184915,0.88558701,838.17,836.89,1.18970075]
[1766120185116,0.20785861,837.51,836.77,1.18970075]
[1766120185416,8.92737373,838.01,836.74,1.18970075]
[1766120185712,0.20779035,837.51,836.74,1.18970075]
[1766120185915,8.92737373,838.01,836.74,1.18970075]
[1766120186413,8.92737373,838.01,836.72,1.18970075]
[1766120187012,8.92737373,838.01,836.73,1.18970075]
[1766120187215,0.20779593,837.69,836.72,1.18970075]
[1766120187412,0.20779593,837.69,836.7,1.18970075]
[1766120188415,0.20779593,837.69,836.69,1.18970075]
[1766120189315,0.20779593,837.69,836.68,1.18970075]
[1766120189515,0.20779593,837.69,836.67,1.18970075]
[1766120190412,0.20779593,837.69,836.35,1.65]
[1766120190413,0.20779593,837.69,836.65,1.18970075]
[1766120191418,0.20779593,837.69,836.64,1.18970075]
[1766120192118,0.20779593,837.69,836.61,1.18970075]
[1766120192313,0.20779593,837.69,836.55,1.18970075]
[1766120193119,0.20779593,837.69,836.54,1.18970075]
[1766120193416,0.20779593,837.69,836.53,1.18970075]
[1766120194019,0.20779593,837.69,836.58,1.18970075]
[1766120194416,0.20779593,837.69,836.57,1.18970075]
[1766120195121,0.20779593,837.69,836.56,1.18970075]
[1766120195321,0.20779593,837.69,836.55,1.18970075]
[1766120196420,0.20779593,837.69,836.54,1.18970075]
[1766120197324,0.20779593,837.69,836.53,1.18970075]
[1766120197523,0.20779593,837.69,836.52,1.18970075]
[1766120198323,0.20779593,837.69,836.51,1.18970075]
[1766120199524,0.20779593,837.69,836.47,1.18970075]
[1766120200325,0.20779593,837.69,836.46,1.18970075]
[1766120202325,0.20779593,837.69,836.45,1.18970075]
[1766120204127,0.20779593,837.69,836.44,1.18970075]
[1766120205426,0.20779593,837.69,836.43,1.18970075]
[1766120211428,0.20779593,837.69,836.42,1.18970075]
[1766120212435,0.20779593,837.69,836.4,1.18970075]
[1766120212735,0.20779593,837.69,836.41,1.18970075]
[1766120214939,0.20779593,837.69,836.35,1.65]
[1766120214940,0.20779593,837.69,836.43,1.18970075]
[1766120215237,0.20779593,837.69,836.42,1.18970075]
[1766120216134,0.20779593,837.69,836.44,1.18970075]
[1766120217138,0.20779593,837.69,836.34,13.151146]
[1766120217139,0.20779593,837.69,836.45,1.18970075]
[1766120217338,0.20779593,837.69,836.46,1.18970075]
[1766120218137,0.20779593,837.69,836.34,13.151146]
[1766120218138,0.20779593,837.69,836.47,1.18970075]
[1766120219336,0.20779593,837.69,836.34,13.151146]
[1766120219337,0.20779593,837.69,836.49,1.18970075]
[1766120219937,0.20779593,837.69,836.5,2.342]
[1766120222145,0.20779593,837.69,836.5,3.53170075]
[1766120222345,0.20779593,837.69,836.51,1.18970075]
[1766120223445,0.20779593,837.69,836.52,1.18970075]
[1766120224346,0.20779593,837.69,836.56,1.18970075]
[1766120225043,0.20779593,837.69,836.63,1.18970075]
[1766120225444,0.20779593,837.69,836.64,1.18970075]
[1766120226345,0.20779593,837.69,836.65,1.18970075]
[1766120227448,0.20779593,837.69,836.62,1.18970075]
[1766120227647,0.20779593,837.69,836.59,1.18970075]
[1766120228444,0.20779593,837.69,836.61,1.18970075]
[1766120229447,0.20779593,837.69,836.63,1.18970075]
[1766120230349,0.20779593,837.69,836.64,1.18970075]
[1766120231454,0.20779593,837.69,836.66,1.18970075]
[1766120232355,0.20779593,837.69,836.67,1.18970075]
[1766120233353,0.20779593,837.69,836.68,1.18970075]
[1766120234351,0.20779593,837.69,836.7,1.18970075]
[1766120235454,0.20779593,837.69,836.71,1.18970075]
[1766120236355,0.20779593,837.69,836.72,1.18970075]
[1766120236854,0.20779593,837.69,836.68,1.18970075]
[1766120237258,0.20779593,837.69,836.69,1.18970075]
[1766120238356,0.20779593,837.69,836.7,1.18970075]
[1766120238861,0.20779593,837.69,836.66,1.18970075]
[1766120239357,0.20779593,837.69,836.68,1.18970075]
[1766120240361,0.20779593,837.69,836.69,1.18970075]
[1766120241362,0.20779593,837.69,836.71,1.18970075]
[1766120242361,0.20779593,837.69,836.5,2.342]
[1766120242362,0.20779593,837.69,836.72,1.18970075]
[1766120243362,0.20779593,837.69,836.73,1.18970075]
[1766120244466,0.20779593,837.69,836.75,1.18970075]
[1766120246162,0.20779593,837.69,836.74,1.18970075]
[1766120246360,0.20779593,837.69,836.75,1.18970075]
[1766120247165,0.20779593,837.69,836.74,1.18970075]
[1766120247360,0.20779593,837.69,836.75,1.18970075]
[1766120248162,0.20779593,837.69,836.74,1.18970075]
[1766120248366,0.20779593,837.69,836.75,1.18970075]
[1766120249167,0.20779593,837.69,836.74,1.18970075]
[1766120249467,0.20779593,837.69,836.75,1.18970075]
[1766120250165,0.20779593,837.69,836.74,1.18970075]
[1766120250468,0.20779593,837.69,836.75,1.18970075]
[1766120251268,0.20779593,837.69,836.74,1.18970075]
[1766120251565,0.20779593,837.69,836.59,1.76250693]
[1766120251566,0.20779593,837.69,836.75,1.18970075]
[1766120253164,0.20779593,837.69,836.74,1.18970075]
[1766120255770,0.88558701,837.75,836.74,1.18970075]
[1766120258566,0.88558701,837.73,836.73,1.18970075]
[1766120259169,0.20783006,837.49,836.72,1.18970075]
[1766120259571,0.20783006,837.49,836.67,1.18970075]
[1766120259866,0.20783006,837.49,836.5,2.342]
[1766120259867,0.20783006,837.49,836.54,1.18970075]
[1766120260070,0.20783006,837.49,836.53,1.18970075]
[1766120261172,0.20783006,837.49,836.51,1.18970075]
[1766120261875,0.20783006,837.49,836.52,1.18970075]
[1766120262068,0.20783006,837.49,836.51,1.18970075]
[1766120262269,0.20783006,837.49,836.57,1.18970075]
[1766120262774,0.20783006,837.49,836.63,1.18970075]
[1766120263074,0.20783006,837.49,836.65,1.18970075]
[1766120264378,0.20783006,837.49,836.68,1.18970075]
[1766120266673,0.20783006,837.49,836.76,1.18970075]
[1766120267678,0.20783006,837.49,836.77,1.18970075]
[1766120269981,0.20783006,837.49,836.78,1.18970075]
[1766120270176,0.20783006,837.49,836.79,1.18970075]
[1766120271176,0.20783006,837.49,836.8,1.18970075]
[1766120272082,0.20783006,837.49,836.83,1.18970075]
[1766120273778,0.20783006,837.49,836.84,2.238]
[1766120282490,0.20783006,837.49,836.86,1.18970075]
[1766120283291,0.20783006,837.49,836.85,1.18970075]
[1766120286389,0.20778724,837.56,836.85,1.18970075]
[1766120287494,0.20778724,837.56,836.93,1.18970075]
[1766120288094,0.20778724,837.56,836.92,1.18970075]
[1766120289194,0.20778724,837.56,836.91,1.18970075]
[1766120290196,8.92737373,838.01,836.91,1.18970075]
[1766120290392,0.20776678,837.65,836.91,1.18970075]
[1766120290692,8.92737373,838.01,836.91,1.18970075]
[1766120290992,0.20776678,837.65,836.91,1.18970075]
[1766120291296,8.92737373,838.01,836.91,1.18970075]
[1766120291597,8.92737373,838.01,836.94,1.18970075]
[1766120291897,8.92737373,838.01,836.98,1.18970075]
[1766120292497,0.20775933,837.76,836.98,1.18970075]
[1766120293194,0.20775933,837.76,836.97,1.18970075]
[1766120294195,0.20775933,837.76,836.96,1.18970075]
[1766120295703,0.20775933,837.76,836.97,1.18970075]
[1766120296201,0.20775933,837.76,836.96,1.18970075]
[1766120296698,0.20775933,837.76,837.0,1.18970075]
[1766120298200,0.20775933,837.76,836.85,1.76250693]
[1766120298201,0.20775933,837.76,836.99,1.18970075]
[1766120299203,0.20775933,837.76,836.94,1.18970075]
[1766120300003,0.20775933,837.76,836.93,1.18970075]
[1766120300202,0.20775933,837.76,836.92,1.18970075]
[1766120303207,0.20775933,837.76,836.91,1.18970075]
[1766120307211,0.20775933,837.76,836.9,1.18970075]
[1766120315114,0.20775933,837.76,836.9,14.25774377]
[1766120317622,0.20775933,837.76,836.91,1.18970075]
[1766120317822,0.20775933,837.76,836.91,2.70270075]
[1766120319420,0.20775933,837.76,836.92,1.18970075]
[1766120320226,0.20775933,837.76,836.93,1.18970075]
[1766120321225,0.20775933,837.76,836.95,1.18970075]
[1766120322226,0.20775933,837.76,836.96,1.18970075]
[1766120323323,0.20775933,837.76,837.03,1.18970075]
[1766120324426,0.20775933,837.76,836.91,1.513]
[1766120324427,0.20775933,837.76,837.04,1.18970075]
[1766120326127,0.20775933,837.76,837.05,1.18970075]
[1766120327127,0.20775933,837.76,836.99,1.18970075]
[1766120329225,0.20775933,837.76,837.0,1.18970075]
[1766120331730,0.88527447,838.17,837.04,1.18970075]
[1766120332032,0.20772957,837.85,837.04,1.18970075]
[1766120332228,0.20772957,837.85,837.05,1.18970075]
[1766120335736,0.20772957,837.85,837.12,1.18970075]
[1766120336234,0.20772957,837.85,837.13,1.18970075]
[1766120336935,0.20772957,837.85,837.17,1.18970075]
[1766120337430,0.20772957,837.85,837.2,1.18970075]
[1766120337636,8.86084989,837.89,837.22,1.18970075]
[1766120337831,0.20771159,838.01,837.26,1.18970075]
[1766120338036,0.88527447,838.42,837.32,1.18970075]
[1766120338337,0.20766449,838.12,837.31,1.18970075]
[1766120338935,0.20766449,838.12,837.35,1.18970075]
[1766120339136,0.20766449,838.12,837.34,1.18970075]
[1766120340339,0.20766449,838.12,837.37,1.18970075]
[1766120340735,0.20766449,838.12,837.44,1.18970075]
[1766120341135,9.01542151,838.15,837.49,1.18970075]
[1766120341341,9.01542151,838.15,837.46,1.18970075]
[1766120342141,9.01542151,838.15,837.47,1.18970075]
[1766120342347,9.01542151,838.15,837.45,1.18970075]
[1766120343443,9.01542151,838.15,837.43,1.18970075]
[1766120344446,9.01542151,838.15,837.37,1.18970075]
[1766120344643,9.01542151,838.15,836.91,1.513]
[1766120344644,9.01542151,838.15,837.34,1.18970075]
[1766120345046,9.01542151,838.15,837.3,1.18970075]
[1766120345250,9.01542151,838.15,837.25,1.18970075]
[1766120345450,9.01542151,838.15,836.91,1.513]
[1766120345451,9.01542151,838.15,837.15,1.18970075]
[1766120353457,9.01542151,838.15,837.16,1.605]
[1766120356654,9.01542151,838.15,837.18,1.18970075]
[1766120357360,9.01542151,838.15,837.17,1.18970075]
[1766120357959,1.1950373,838.14,837.17,1.18970075]
[1766120358159,0.88527447,838.04,837.16,1.605]
[1766120358355,1.1950373,838.03,837.16,1.605]
[1766120359554,0.88527447,838.05,837.16,1.605]
[1766120359755,1.19501238,838.04,837.16,1.605]
[1766120361460,0.88527447,838.06,837.16,1.605]
[1766120361661,1.19501202,838.05,837.16,1.605]
[1766120362663,0.88527447,838.07,837.16,1.605]
[1766120362858,1.19501191,838.06,837.16,1.605]
[1766120364565,0.88527447,838.08,837.16,1.605]
[1766120364865,1.19501191,838.07,837.16,1.605]
[1766120366666,0.88527447,838.09,837.16,1.605]
[1766120366860,1.19501205,838.08,837.16,1.605]
[1766120368365,0.88527447,838.1,837.16,1.605]
[1766120368562,1.19501205,838.09,837.16,1.605]
[1766120370766,0.88527447,838.11,837.16,1.605]
[1766120370965,1.19501168,838.1,837.16,1.605]
[1766120372266,0.88527447,838.11,837.16,1.605]
[1766120372470,1.19501194,838.1,837.16,1.605]
[1766120372670,0.88527447,838.11,837.16,1.605]
[1766120372965,1.19501194,838.1,837.16,1.605]
[1766120373164,0.88527447,838.12,837.16,1.605]
[1766120373870,0.88527447,838.11,837.16,1.605]
[1766120374270,0.88527447,838.08,837.16,1.605]
[1766120374665,0.88527447,838.04,837.16,1.605]
[1766120374867,0.88527447,838.0,837.16,1.605]
[1766120375271,0.88527447,838.01,837.16,1.605]
[1766120375871,1.19518027,838.0,837.16,1.605]
[1766120376570,0.88527447,837.94,837.16,1.605]
[1766120376770,1.19518027,837.93,837.16,1.605]
[1766120378173,0.88527447,837.96,837.16,1.605]
[1766120378369,0.88527447,838.02,837.16,1.605]
[1766120378569,1.19520624,838.01,837.16,1.605]
[1766120378767,0.88527447,838.03,837.16,1.605]
[1766120379073,1.19519962,838.02,837.16,1.605]
[1766120379469,0.88527447,838.07,837.16,1.605]
[1766120379673,1.19514852,838.06,837.16,1.605]
[1766120381573,1.19514852,838.06,836.9,13.06804302]
[1766120382478,0.88527447,838.08,836.9,13.06804302]
[1766120382775,1.19514888,838.07,836.9,13.06804302]
[1766120383974,1.19514888,838.07,836.91,2.52]
[1766120384378,0.88527447,838.04,836.91,2.52]
[1766120384574,1.19514888,838.03,836.91,2.52]
[1766120386477,0.88527447,838.05,836.91,2.52]
[1766120386777,1.1952124,838.04,836.91,2.52]
[1766120387780,0.88527447,838.12,836.91,2.52]
[1766120387980,1.1951102,838.11,836.91,2.52]
[1766120388380,0.88527447,838.12,836.91,2.52]
[1766120388681,1.1951102,838.11,836.91,2.52]
[1766120389176,0.88527447,838.13,836.91,2.52]
[1766120389480,1.19510994,838.12,836.91,2.52]
[1766120391180,0.88527447,838.09,836.91,2.52]
[1766120391384,0.88527447,838.07,836.91,2.52]
[1766120391580,1.19510994,838.06,836.91,2.52]
[1766120392985,0.88527447,838.04,836.91,2.52]
[1766120393186,1.19510994,838.03,836.91,2.52]
[1766120395389,1.19510994,838.02,836.91,2.52]
[1766120395587,0.88527447,838.05,836.91,2.52]
[1766120395787,1.19525125,838.04,836.91,2.52]
[1766120398289,1.19525184,838.03,836.91,2.52]
[1766120398487,1.19525184,838.02,836.91,2.52]
[1766120398688,0.88527447,838.05,836.91,2.52]
[1766120398886,1.19525163,838.04,836.91,2.52]
[1766120399187,0.88527447,838.09,836.91,2.52]
[1766120399487,2.08046129,838.08,836.91,2.52]
[1766120399687,1.19518682,838.07,836.91,2.52]
[1766120400689,0.88527447,838.13,836.91,2.52]
[1766120400984,1.19512144,838.12,836.91,2.52]
[1766120402187,0.88527447,838.18,836.91,2.52]
[1766120402386,0.20765644,838.22,836.91,2.52]
[1766120402387,2.08030639,838.17,836.91,2.52]
[1766120402590,1.19503192,838.16,836.91,2.52]